[Event "*** Titled Tuesday Blitz"]
[Site "Chess.com"]
[Date "2020.04.14"]
[Round "8"]
[White "Chessalary"]
[Black "SahaNeelash"]
[Result "1-0"]
[WhiteElo "2330"]
[BlackElo "2548"]
[TimeControl "180+1"]
[EndTime "11:28:45 PDT"]
[Termination "Chessalary won by resignation"]

1. e4 {[%clk 0:02:55.7]} 1... e6 {[%clk 0:02:55.1]} 2. d4 {[%clk 0:02:53.3]}
2... d5 {[%clk 0:02:55.4]} 3. Nd2 {[%clk 0:02:53.2]} 3... Be7 {[%clk 0:02:54.5]}
4. Bd3 {[%clk 0:02:51.7]} 4... c5 {[%clk 0:02:54.8]} 5. dxc5 {[%clk 0:02:46.9]}
5... Nf6 {[%clk 0:02:53.5]} 6. Ngf3 {[%clk 0:02:42.6]} 6... dxe4 {[%clk
0:02:52.4]} 7. Nxe4 {[%clk 0:02:42.3]} 7... Nxe4 {[%clk 0:02:52.4]} 8. Bxe4
{[%clk 0:02:43.2]} 8... Qxd1+ {[%clk 0:02:52.2]} 9. Kxd1 {[%clk 0:02:44.1]} 9...
Bxc5 {[%clk 0:02:52.1]} 10. Ke2 {[%clk 0:02:43]} 10... Nd7 {[%clk 0:02:48]} 11.
Bf4 {[%clk 0:02:40.2]} 11... Nf6 {[%clk 0:02:45.2]} 12. Bd3 {[%clk 0:02:38.5]}
12... Bd7 {[%clk 0:02:37.2]} 13. Ne5 {[%clk 0:02:33]} 13... a6 {[%clk
0:02:12.9]} 14. f3 {[%clk 0:02:17.6]} 14... Rd8 {[%clk 0:02:04.7]} 15. Rad1
{[%clk 0:02:16.1]} 15... Bc8 {[%clk 0:01:54.6]} 16. c4 {[%clk 0:02:05.9]} 16...
h6 {[%clk 0:01:44.1]} 17. Bg6 {[%clk 0:01:42.1]} 17... Rf8 {[%clk 0:00:58.7]}
18. Bxf7+ {[%clk 0:01:37.3]} 18... Ke7 {[%clk 0:00:58.7]} 19. Bg6 {[%clk
0:01:20.6]} 19... Bd4 {[%clk 0:00:47.1]} 20. Bc2 {[%clk 0:01:07]} 20... Rfe8
{[%clk 0:00:30]} 21. b3 {[%clk 0:00:53.6]} 21... Nh5 {[%clk 0:00:25.6]} 22. Ng6+
{[%clk 0:00:53.4]} 22... Kf6 {[%clk 0:00:24.9]} 23. Rxd4 {[%clk 0:00:45.9]}
23... Rxd4 {[%clk 0:00:19.2]} 24. Be5+ {[%clk 0:00:45.9]} 24... Kf7 {[%clk
0:00:19.4]} 25. Bxd4 {[%clk 0:00:46.8]} 25... e5 {[%clk 0:00:19.9]} 26. Nxe5+
{[%clk 0:00:36.4]} 1-0

[Event "*** Titled Tuesday Blitz"]
[Site "Chess.com"]
[Date "2020.04.14"]
[Round "8"]
[White "TheFireChess"]
[Black "Haridaskesavan"]
[Result "0-1"]
[WhiteElo "2408"]
[BlackElo "2225"]
[TimeControl "180+1"]
[EndTime "11:28:47 PDT"]
[Termination "Haridaskesavan won on time"]

1. e4 {[%clk 0:03:00.9]} 1... e5 {[%clk 0:02:59.6]} 2. Nf3 {[%clk 0:03:00.2]}
2... Nc6 {[%clk 0:02:59.5]} 3. Bc4 {[%clk 0:03:00.7]} 3... Nf6 {[%clk
0:02:58.2]} 4. d3 {[%clk 0:03:01]} 4... Be7 {[%clk 0:02:57.6]} 5. c3 {[%clk
0:03:01.4]} 5... O-O {[%clk 0:02:57.5]} 6. Nbd2 {[%clk 0:03:01.9]} 6... d5
{[%clk 0:02:57.5]} 7. Bb5 {[%clk 0:03:02.3]} 7... dxe4 {[%clk 0:02:56]} 8. dxe4
{[%clk 0:03:03.2]} 8... Bg4 {[%clk 0:02:51.1]} 9. h3 {[%clk 0:03:03]} 9... Bh5
{[%clk 0:02:50.7]} 10. g4 {[%clk 0:03:03.2]} 10... Bg6 {[%clk 0:02:50.3]} 11.
Qe2 {[%clk 0:03:02.2]} 11... Bc5 {[%clk 0:02:21]} 12. g5 {[%clk 0:02:07.1]}
12... Nh5 {[%clk 0:02:17.6]} 13. Nb3 {[%clk 0:01:55.6]} 13... Bd6 {[%clk
0:02:15]} 14. h4 {[%clk 0:01:49]} 14... Qe7 {[%clk 0:01:56.3]} 15. Bd2 {[%clk
0:01:34.7]} 15... Nf4 {[%clk 0:01:37.2]} 16. Bxf4 {[%clk 0:01:19.7]} 16... exf4
{[%clk 0:01:37]} 17. Nbd2 {[%clk 0:01:07.1]} 17... Bh5 {[%clk 0:01:34.3]} 18.
Bxc6 {[%clk 0:00:56.5]} 18... bxc6 {[%clk 0:01:33.2]} 19. O-O-O {[%clk 0:00:57]}
19... Rfe8 {[%clk 0:01:19.3]} 20. Rhe1 {[%clk 0:00:47.5]} 20... Bc5 {[%clk
0:01:12.5]} 21. Nb3 {[%clk 0:00:26.9]} 21... Bb6 {[%clk 0:01:11]} 22. Rd3 {[%clk
0:00:23.3]} 22... a5 {[%clk 0:01:07.9]} 23. Kb1 {[%clk 0:00:20.6]} 23... a4
{[%clk 0:01:05.7]} 24. Nc1 {[%clk 0:00:21]} 24... a3 {[%clk 0:01:00.1]} 25. b3
{[%clk 0:00:20.5]} 25... c5 {[%clk 0:00:57.5]} 26. Rd5 {[%clk 0:00:10.6]} 26...
c4 {[%clk 0:00:53.8]} 0-1

[Event "*** Titled Tuesday Blitz"]
[Site "Chess.com"]
[Date "2020.04.14"]
[Round "8"]
[White "Storne89"]
[Black "Msb2"]
[Result "1-0"]
[WhiteElo "2624"]
[BlackElo "2873"]
[TimeControl "180+1"]
[EndTime "11:28:48 PDT"]
[Termination "Storne89 won by resignation"]

1. e4 {[%clk 0:03:00.9]} 1... e6 {[%clk 0:03:00]} 2. d4 {[%clk 0:03:01.2]} 2...
d5 {[%clk 0:03:00.6]} 3. Nc3 {[%clk 0:03:01.8]} 3... Nf6 {[%clk 0:03:00.7]} 4.
Bg5 {[%clk 0:03:01.5]} 4... dxe4 {[%clk 0:02:58.3]} 5. Nxe4 {[%clk 0:03:01.2]}
5... Be7 {[%clk 0:02:58.7]} 6. Bxf6 {[%clk 0:03:01]} 6... Bxf6 {[%clk
0:02:59.2]} 7. Nf3 {[%clk 0:03:00.1]} 7... Nd7 {[%clk 0:02:59.9]} 8. Qd2 {[%clk
0:02:59.1]} 8... O-O {[%clk 0:02:58.1]} 9. O-O-O {[%clk 0:02:58.5]} 9... Be7
{[%clk 0:02:57.2]} 10. h4 {[%clk 0:02:57]} 10... c5 {[%clk 0:02:57.1]} 11. Bd3
{[%clk 0:02:51.3]} 11... cxd4 {[%clk 0:02:52.9]} 12. Nfg5 {[%clk 0:02:48.5]}
12... h6 {[%clk 0:02:42.1]} 13. f4 {[%clk 0:02:48.5]} 13... Rb8 {[%clk
0:02:35.7]} 14. g4 {[%clk 0:02:36.4]} 14... b5 {[%clk 0:02:32.7]} 15. Nf3 {[%clk
0:02:31.6]} 15... f5 {[%clk 0:02:08.6]} 16. gxf5 {[%clk 0:02:27]} 16... exf5
{[%clk 0:02:09.5]} 17. Ng3 {[%clk 0:02:25.3]} 17... Nc5 {[%clk 0:02:09.7]} 18.
Ne5 {[%clk 0:02:21.6]} 18... Qd5 {[%clk 0:01:51.1]} 19. Kb1 {[%clk 0:02:19.3]}
19... Be6 {[%clk 0:01:49.8]} 20. b3 {[%clk 0:02:18.7]} 20... Bf6 {[%clk
0:01:44.5]} 21. Rhe1 {[%clk 0:02:03.6]} 21... Nxd3 {[%clk 0:01:21.1]} 22. Qxd3
{[%clk 0:01:59.5]} 22... Rbe8 {[%clk 0:01:05.7]} 23. Nh5 {[%clk 0:01:51.8]}
23... Kh7 {[%clk 0:00:51.1]} 24. Rg1 {[%clk 0:01:46.6]} 24... Qe4 {[%clk
0:00:44.6]} 25. Qg3 {[%clk 0:01:35.4]} 25... Re7 {[%clk 0:00:23.7]} 26. Ng6
{[%clk 0:00:51.2]} 26... Rc8 {[%clk 0:00:21.4]} 27. Nxf6+ {[%clk 0:00:48]} 27...
gxf6 {[%clk 0:00:22.3]} 28. Nxe7 {[%clk 0:00:44.4]} 28... Qxc2+ {[%clk
0:00:22.3]} 29. Ka1 {[%clk 0:00:44.8]} 29... Qc3+ {[%clk 0:00:22.6]} 30. Qxc3
{[%clk 0:00:44.8]} 30... dxc3 {[%clk 0:00:23.5]} 31. Nxc8 {[%clk 0:00:44.5]}
31... Bxc8 {[%clk 0:00:23.9]} 32. b4 {[%clk 0:00:41.7]} 1-0

[Event "*** Titled Tuesday Blitz"]
[Site "Chess.com"]
[Date "2020.04.14"]
[Round "8"]
[White "JMatias"]
[Black "nonscitis"]
[Result "1-0"]
[WhiteElo "2377"]
[BlackElo "2633"]
[TimeControl "180+1"]
[EndTime "11:28:48 PDT"]
[Termination "JMatias won on time"]

1. e4 {[%clk 0:03:00.9]} 1... c5 {[%clk 0:02:59.4]} 2. Nf3 {[%clk 0:03:00.5]}
2... Nc6 {[%clk 0:02:58.4]} 3. Bb5 {[%clk 0:03:00]} 3... e6 {[%clk 0:02:57.6]}
4. Bxc6 {[%clk 0:02:59.2]} 4... bxc6 {[%clk 0:02:54.4]} 5. O-O {[%clk
0:02:58.6]} 5... d6 {[%clk 0:02:50.9]} 6. c4 {[%clk 0:02:58]} 6... e5 {[%clk
0:02:49.7]} 7. Nc3 {[%clk 0:02:57]} 7... Ne7 {[%clk 0:02:44.1]} 8. h3 {[%clk
0:02:55.9]} 8... Ng6 {[%clk 0:02:42.9]} 9. d3 {[%clk 0:02:55.7]} 9... Be7 {[%clk
0:02:42.6]} 10. Ne2 {[%clk 0:02:53.6]} 10... O-O {[%clk 0:02:41.7]} 11. Be3
{[%clk 0:02:49.7]} 11... f5 {[%clk 0:02:39.9]} 12. exf5 {[%clk 0:02:47.1]} 12...
Bxf5 {[%clk 0:02:40.8]} 13. Ng3 {[%clk 0:02:45.7]} 13... Be6 {[%clk 0:02:41.2]}
14. Ne4 {[%clk 0:02:44.1]} 14... Qd7 {[%clk 0:02:41]} 15. Kh2 {[%clk 0:02:19.8]}
15... Nf4 {[%clk 0:02:40.4]} 16. Ng1 {[%clk 0:02:17.5]} 16... Rf5 {[%clk
0:02:31.3]} 17. Ng3 {[%clk 0:02:15.7]} 17... Rf7 {[%clk 0:02:28.9]} 18. Qd2
{[%clk 0:02:10.4]} 18... Raf8 {[%clk 0:02:27.7]} 19. a3 {[%clk 0:02:09.1]} 19...
d5 {[%clk 0:02:25.7]} 20. Rab1 {[%clk 0:02:06.9]} 20... d4 {[%clk 0:02:24.9]}
21. Bxf4 {[%clk 0:02:06.6]} 21... exf4 {[%clk 0:02:23.4]} 22. Ne4 {[%clk
0:02:06.6]} 22... f3 {[%clk 0:02:23.4]} 23. Nxf3 {[%clk 0:02:02.9]} 23... Rxf3
{[%clk 0:02:06.4]} 24. gxf3 {[%clk 0:02:02.3]} 24... Rxf3 {[%clk 0:02:06.3]} 25.
Rh1 {[%clk 0:01:49.6]} 25... Bxh3 {[%clk 0:02:02.4]} 26. Rbg1 {[%clk 0:01:45.5]}
26... Bf1 {[%clk 0:01:15.2]} 27. Rxf1 {[%clk 0:01:42.3]} 27... Bh4 {[%clk
0:00:59.2]} 28. Ng3 {[%clk 0:01:38.9]} 28... Qg4 {[%clk 0:00:50.6]} 29. Rhg1
{[%clk 0:01:37.9]} 29... Bg5 {[%clk 0:00:41.8]} 30. Qe1 {[%clk 0:01:37]} 30...
Rf8 {[%clk 0:00:34.5]} 31. Qe4 {[%clk 0:01:35.2]} 31... Bf4 {[%clk 0:00:33.7]}
32. Kg2 {[%clk 0:01:34.4]} 32... h5 {[%clk 0:00:26.4]} 33. Qe2 {[%clk
0:01:33.3]} 33... Qc8 {[%clk 0:00:16.9]} 34. Qxh5 {[%clk 0:01:32.6]} 34... Qe6
{[%clk 0:00:13.6]} 35. Rh1 {[%clk 0:01:32.4]} 35... Bh6 {[%clk 0:00:11.6]} 36.
f4 {[%clk 0:01:30.9]} 36... Qe3 {[%clk 0:00:09.5]} 37. Ne4 {[%clk 0:01:30.1]}
37... Qxd3 {[%clk 0:00:09]} 38. Qg6 {[%clk 0:01:29.4]} 38... Qxc4 {[%clk
0:00:06]} 39. Rxh6 {[%clk 0:01:28.6]} 39... Qe2+ {[%clk 0:00:05.7]} 40. Rf2
{[%clk 0:01:28.3]} 1-0

[Event "*** Titled Tuesday Blitz"]
[Site "Chess.com"]
[Date "2020.04.14"]
[Round "8"]
[White "FROGGY64"]
[Black "1f3_2g41-0"]
[Result "1-0"]
[WhiteElo "2367"]
[BlackElo "2185"]
[TimeControl "180+1"]
[EndTime "11:28:49 PDT"]
[Termination "FROGGY64 won by checkmate"]

1. d4 {[%clk 0:03:00.9]} 1... Nf6 {[%clk 0:02:59]} 2. c4 {[%clk 0:03:00.4]} 2...
g6 {[%clk 0:02:58.7]} 3. f3 {[%clk 0:02:59.2]} 3... d5 {[%clk 0:02:51.4]} 4.
cxd5 {[%clk 0:02:57.9]} 4... Nxd5 {[%clk 0:02:52.3]} 5. e4 {[%clk 0:02:58]} 5...
Nb6 {[%clk 0:02:52.6]} 6. Nc3 {[%clk 0:02:58.2]} 6... Bg7 {[%clk 0:02:52.8]} 7.
Be3 {[%clk 0:02:58.1]} 7... O-O {[%clk 0:02:52.4]} 8. Qd2 {[%clk 0:02:57.5]}
8... f5 {[%clk 0:02:50.6]} 9. h4 {[%clk 0:02:51.8]} 9... Nc6 {[%clk 0:02:44.7]}
10. O-O-O {[%clk 0:02:50.6]} 10... f4 {[%clk 0:02:28.9]} 11. Bf2 {[%clk
0:02:48.1]} 11... e5 {[%clk 0:02:23]} 12. d5 {[%clk 0:02:47.8]} 12... Nd4 {[%clk
0:02:22.9]} 13. h5 {[%clk 0:02:42.8]} 13... c5 {[%clk 0:02:21.3]} 14. hxg6
{[%clk 0:02:40.5]} 14... hxg6 {[%clk 0:02:20.7]} 15. Kb1 {[%clk 0:02:40.6]}
15... g5 {[%clk 0:01:54.9]} 16. g3 {[%clk 0:02:35.5]} 16... Bd7 {[%clk
0:01:50.3]} 17. gxf4 {[%clk 0:02:34]} 17... exf4 {[%clk 0:01:45.9]} 18. Nge2
{[%clk 0:02:24.4]} 18... Nc4 {[%clk 0:01:31.1]} 19. Qd3 {[%clk 0:02:18.2]} 19...
Ne5 {[%clk 0:01:29.4]} 20. Qd2 {[%clk 0:02:13.2]} 20... Nexf3 {[%clk 0:01:27.3]}
21. Qc1 {[%clk 0:02:12.9]} 21... b5 {[%clk 0:01:20.2]} 22. Nxd4 {[%clk
0:02:10.7]} 22... Nxd4 {[%clk 0:01:16.6]} 23. Bxd4 {[%clk 0:02:06.9]} 23... cxd4
{[%clk 0:01:13.7]} 24. Nxb5 {[%clk 0:02:05.4]} 24... Qe8 {[%clk 0:01:08.2]} 25.
Nd6 {[%clk 0:02:03.2]} 25... Qe5 {[%clk 0:01:06.8]} 26. Qc7 {[%clk 0:01:59.3]}
26... Rf6 {[%clk 0:00:52.2]} 27. Qxd7 {[%clk 0:01:53.7]} 27... Rxd6 {[%clk
0:00:51]} 28. Qb7 {[%clk 0:01:51.7]} 28... Rad8 {[%clk 0:00:44.4]} 29. Bd3
{[%clk 0:01:51.3]} 29... Rb6 {[%clk 0:00:42.6]} 30. Qxa7 {[%clk 0:01:48.7]}
30... Rdb8 {[%clk 0:00:42.6]} 31. b3 {[%clk 0:01:47.9]} 31... Qd6 {[%clk
0:00:38.3]} 32. Qa4 {[%clk 0:01:33.4]} 32... Qd8 {[%clk 0:00:32]} 33. Rc1 {[%clk
0:01:29.8]} 33... Ra8 {[%clk 0:00:31.6]} 34. Qc4 {[%clk 0:01:28.3]} 34... Qd6
{[%clk 0:00:26.2]} 35. Rc2 {[%clk 0:01:26.3]} 35... Qa3 {[%clk 0:00:24.2]} 36.
d6+ {[%clk 0:01:23.5]} 36... Kf8 {[%clk 0:00:23.8]} 37. d7 {[%clk 0:01:22.5]}
37... Ke7 {[%clk 0:00:21.1]} 38. Rh7 {[%clk 0:01:21.2]} 38... Kf8 {[%clk
0:00:20.2]} 39. Qc8+ {[%clk 0:01:17.2]} 39... Ke7 {[%clk 0:00:19.1]} 40. d8=Q+
{[%clk 0:01:16.8]} 40... Kf7 {[%clk 0:00:17.2]} 41. Qcd7+ {[%clk 0:01:16.8]}
41... Kg6 {[%clk 0:00:17.2]} 42. Qxg7# {[%clk 0:01:16.7]} 1-0

[Event "*** Titled Tuesday Blitz"]
[Site "Chess.com"]
[Date "2020.04.14"]
[Round "8"]
[White "garfield_pg"]
[Black "czasnaszachy"]
[Result "1-0"]
[WhiteElo "2204"]
[BlackElo "2306"]
[TimeControl "180+1"]
[EndTime "11:28:51 PDT"]
[Termination "garfield_pg won on time"]

1. d4 {[%clk 0:03:00.9]} 1... Nf6 {[%clk 0:02:57.7]} 2. Nc3 {[%clk 0:03:01.8]}
2... g6 {[%clk 0:02:51]} 3. h4 {[%clk 0:03:01]} 3... Bg7 {[%clk 0:02:49.6]} 4.
h5 {[%clk 0:03:01.5]} 4... Nxh5 {[%clk 0:02:49]} 5. Rxh5 {[%clk 0:03:01.6]} 5...
gxh5 {[%clk 0:02:48.7]} 6. e4 {[%clk 0:03:02.5]} 6... c5 {[%clk 0:02:29.6]} 7.
d5 {[%clk 0:02:57.6]} 7... d6 {[%clk 0:02:16.6]} 8. Qxh5 {[%clk 0:02:57.1]} 8...
e5 {[%clk 0:02:00.3]} 9. Nf3 {[%clk 0:02:53.4]} 9... h6 {[%clk 0:01:48.7]} 10.
Bb5+ {[%clk 0:02:48.1]} 10... Bd7 {[%clk 0:01:47.1]} 11. Nh4 {[%clk 0:02:40.9]}
11... Bxb5 {[%clk 0:01:39.4]} 12. Nxb5 {[%clk 0:02:40.6]} 12... a6 {[%clk
0:01:35.7]} 13. Nf5 {[%clk 0:02:35.5]} 13... Bf8 {[%clk 0:01:30.6]} 14. Na3
{[%clk 0:02:01.6]} 14... Qf6 {[%clk 0:01:08.4]} 15. Nc4 {[%clk 0:01:59.1]} 15...
Nd7 {[%clk 0:01:03.3]} 16. a4 {[%clk 0:01:52.7]} 16... O-O-O {[%clk 0:01:00.9]}
17. g4 {[%clk 0:01:48.2]} 17... Be7 {[%clk 0:00:50.5]} 18. Qxf7 {[%clk
0:01:35.9]} 18... Qxf7 {[%clk 0:00:33.7]} 19. Nfxd6+ {[%clk 0:01:35.3]} 19...
Bxd6 {[%clk 0:00:20.6]} 20. Nxd6+ {[%clk 0:01:36.2]} 20... Kc7 {[%clk
0:00:19.8]} 21. Nxf7 {[%clk 0:01:37.1]} 21... Rdf8 {[%clk 0:00:19.4]} 22. Nxh8
{[%clk 0:01:35.7]} 22... Rxh8 {[%clk 0:00:14.7]} 23. Be3 {[%clk 0:01:35.2]}
23... Nf6 {[%clk 0:00:14.6]} 24. f3 {[%clk 0:01:35.1]} 24... Rf8 {[%clk
0:00:13.6]} 25. Ke2 {[%clk 0:01:34.7]} 25... h5 {[%clk 0:00:11.4]} 26. g5 {[%clk
0:01:34]} 26... Nh7 {[%clk 0:00:11.1]} 27. Rh1 {[%clk 0:01:32.7]} 27... Rg8
{[%clk 0:00:09.5]} 28. Rxh5 {[%clk 0:01:32.2]} 28... Nf8 {[%clk 0:00:10.2]} 29.
Bxc5 {[%clk 0:01:29.4]} 29... Ng6 {[%clk 0:00:09.9]} 30. Rh7+ {[%clk 0:01:29.1]}
30... Kc8 {[%clk 0:00:09.6]} 31. Be3 {[%clk 0:01:27.8]} 31... b5 {[%clk
0:00:07]} 32. axb5 {[%clk 0:01:25.6]} 32... axb5 {[%clk 0:00:07.3]} 33. b3
{[%clk 0:01:24.6]} 33... Kd8 {[%clk 0:00:05.3]} 34. c4 {[%clk 0:01:24]} 34...
bxc4 {[%clk 0:00:05]} 35. bxc4 {[%clk 0:01:24.9]} 35... Kc8 {[%clk 0:00:05.4]}
36. c5 {[%clk 0:01:23.7]} 36... Nf8 {[%clk 0:00:03.8]} 37. Rf7 {[%clk
0:01:17.7]} 37... Nd7 {[%clk 0:00:03.2]} 38. c6 {[%clk 0:01:16.6]} 1-0

[Event "*** Titled Tuesday Blitz"]
[Site "Chess.com"]
[Date "2020.04.14"]
[Round "8"]
[White "Sam_ChessMood"]
[Black "Zurability"]
[Result "1-0"]
[WhiteElo "2912"]
[BlackElo "2724"]
[TimeControl "180+1"]
[EndTime "11:28:53 PDT"]
[Termination "Sam_ChessMood won by checkmate"]

1. e4 {[%clk 0:03:00.9]} 1... c5 {[%clk 0:02:56.3]} 2. Nf3 {[%clk 0:03:01]} 2...
d6 {[%clk 0:02:57]} 3. d4 {[%clk 0:03:01.2]} 3... cxd4 {[%clk 0:02:57.9]} 4.
Nxd4 {[%clk 0:03:01.7]} 4... Nf6 {[%clk 0:02:58.5]} 5. Nc3 {[%clk 0:03:02]} 5...
a6 {[%clk 0:02:59.2]} 6. Bg5 {[%clk 0:03:01.2]} 6... e6 {[%clk 0:02:56.8]} 7. f4
{[%clk 0:03:01.2]} 7... Be7 {[%clk 0:02:56.5]} 8. Qe2 {[%clk 0:02:57.8]} 8...
Qc7 {[%clk 0:02:48.2]} 9. e5 {[%clk 0:02:23.2]} 9... dxe5 {[%clk 0:02:33]} 10.
fxe5 {[%clk 0:02:23.2]} 10... Nfd7 {[%clk 0:02:24.4]} 11. Bxe7 {[%clk
0:02:22.7]} 11... Kxe7 {[%clk 0:02:24.4]} 12. O-O-O {[%clk 0:02:18.3]} 12...
Qxe5 {[%clk 0:02:22.3]} 13. Qf3 {[%clk 0:02:17.6]} 13... Rd8 {[%clk 0:02:06.3]}
14. Bc4 {[%clk 0:02:02.2]} 14... Nf6 {[%clk 0:02:02.6]} 15. Rhe1 {[%clk
0:01:43.7]} 15... Qc7 {[%clk 0:01:32.3]} 16. Ne4 {[%clk 0:01:31.1]} 16... Nbd7
{[%clk 0:01:12.4]} 17. Bxe6 {[%clk 0:01:05.6]} 17... Ne5 {[%clk 0:00:50.8]} 18.
Qa3+ {[%clk 0:01:04.9]} 18... Ke8 {[%clk 0:00:37.8]} 19. Bf5 {[%clk 0:00:33.2]}
19... Bxf5 {[%clk 0:00:19]} 20. Nxf5 {[%clk 0:00:32.3]} 20... Rxd1+ {[%clk
0:00:19.5]} 21. Rxd1 {[%clk 0:00:32.5]} 21... Nh5 {[%clk 0:00:04]} 22. Nxg7+
{[%clk 0:00:30.8]} 22... Nxg7 {[%clk 0:00:03.5]} 23. Nf6# {[%clk 0:00:31.1]} 1-0

[Event "*** Titled Tuesday Blitz"]
[Site "Chess.com"]
[Date "2020.04.14"]
[Round "8"]
[White "LuckSlayeer"]
[Black "XiaoKangZhong"]
[Result "1-0"]
[WhiteElo "2580"]
[BlackElo "2397"]
[TimeControl "180+1"]
[EndTime "11:28:53 PDT"]
[Termination "LuckSlayeer won by resignation"]

1. Nf3 {[%clk 0:03:00.9]} 1... Nf6 {[%clk 0:02:59.2]} 2. c4 {[%clk 0:03:00.9]}
2... e6 {[%clk 0:02:58.7]} 3. Nc3 {[%clk 0:03:01]} 3... d5 {[%clk 0:02:59.4]} 4.
cxd5 {[%clk 0:03:01]} 4... exd5 {[%clk 0:03:00.3]} 5. d4 {[%clk 0:03:01.5]} 5...
c6 {[%clk 0:02:58.2]} 6. Bf4 {[%clk 0:03:01.3]} 6... Be7 {[%clk 0:02:57.8]} 7.
e3 {[%clk 0:03:01.4]} 7... O-O {[%clk 0:02:57.8]} 8. Bd3 {[%clk 0:03:01.5]} 8...
Re8 {[%clk 0:02:53.1]} 9. Qc2 {[%clk 0:03:00.3]} 9... h6 {[%clk 0:02:52.1]} 10.
O-O {[%clk 0:02:59.1]} 10... Bf8 {[%clk 0:02:48.5]} 11. h3 {[%clk 0:02:52.8]}
11... Nbd7 {[%clk 0:02:47.3]} 12. Rab1 {[%clk 0:02:51.8]} 12... b5 {[%clk
0:02:39.5]} 13. Ne2 {[%clk 0:02:34.7]} 13... Bb7 {[%clk 0:02:35.9]} 14. Ne5
{[%clk 0:02:29.1]} 14... Rc8 {[%clk 0:02:23.4]} 15. Qd2 {[%clk 0:02:17]} 15...
Ne4 {[%clk 0:02:19.7]} 16. Qe1 {[%clk 0:02:07.3]} 16... Nxe5 {[%clk 0:02:18.2]}
17. Bxe5 {[%clk 0:02:07.6]} 17... a6 {[%clk 0:02:06.9]} 18. f3 {[%clk
0:02:07.3]} 18... Nd6 {[%clk 0:02:06.2]} 19. Qg3 {[%clk 0:01:59.4]} 19... Nc4
{[%clk 0:02:04.3]} 20. Bxc4 {[%clk 0:01:40.7]} 20... bxc4 {[%clk 0:02:05.2]} 21.
b3 {[%clk 0:01:24.3]} 21... cxb3 {[%clk 0:01:35]} 22. Rxb3 {[%clk 0:01:25.2]}
22... Ba8 {[%clk 0:01:35.3]} 23. Bf4 {[%clk 0:01:23.4]} 23... Kh7 {[%clk
0:01:30.3]} 24. Qg4 {[%clk 0:01:23.4]} 24... c5 {[%clk 0:01:27.7]} 25. dxc5
{[%clk 0:01:16.9]} 25... Rxc5 {[%clk 0:01:28.6]} 26. Nd4 {[%clk 0:01:17]} 26...
Bc6 {[%clk 0:01:19.1]} 27. Rfb1 {[%clk 0:01:08.5]} 27... Bd7 {[%clk 0:01:10.9]}
28. Qg3 {[%clk 0:01:08.9]} 28... Qc8 {[%clk 0:00:58.9]} 29. Bd6 {[%clk
0:00:57.1]} 29... Rc1+ {[%clk 0:00:54.3]} 30. Rxc1 {[%clk 0:00:47]} 30... Qxc1+
{[%clk 0:00:51.9]} 31. Kh2 {[%clk 0:00:47.9]} 31... Rxe3 {[%clk 0:00:42.2]} 32.
Bxf8 {[%clk 0:00:44.1]} 32... g6 {[%clk 0:00:41.7]} 33. Qf4 {[%clk 0:00:38]}
33... Bf5 {[%clk 0:00:25.1]} 34. Qxh6+ {[%clk 0:00:36.9]} 1-0

[Event "*** Titled Tuesday Blitz"]
[Site "Chess.com"]
[Date "2020.04.14"]
[Round "8"]
[White "Taran2004"]
[Black "lifeissofun"]
[Result "1-0"]
[WhiteElo "2022"]
[BlackElo "2202"]
[TimeControl "180+1"]
[EndTime "11:28:53 PDT"]
[Termination "Taran2004 won by resignation"]

1. e4 {[%clk 0:03:00.9]} 1... c5 {[%clk 0:02:59.5]} 2. Nf3 {[%clk 0:03:00.8]}
2... d6 {[%clk 0:03:00.4]} 3. Bb5+ {[%clk 0:02:57.2]} 3... Nd7 {[%clk
0:02:58.8]} 4. O-O {[%clk 0:02:55.4]} 4... a6 {[%clk 0:02:57.9]} 5. Be2 {[%clk
0:02:55.3]} 5... e6 {[%clk 0:02:56.3]} 6. d4 {[%clk 0:02:55.2]} 6... cxd4 {[%clk
0:02:55.7]} 7. Nxd4 {[%clk 0:02:56.1]} 7... Be7 {[%clk 0:02:55.7]} 8. c4 {[%clk
0:02:56.5]} 8... Ngf6 {[%clk 0:02:55.5]} 9. Nc3 {[%clk 0:02:56.8]} 9... O-O
{[%clk 0:02:56.1]} 10. f3 {[%clk 0:02:56.6]} 10... Qc7 {[%clk 0:02:54.8]} 11. b3
{[%clk 0:02:56.1]} 11... b5 {[%clk 0:02:52.9]} 12. Be3 {[%clk 0:02:53.2]} 12...
bxc4 {[%clk 0:02:50.7]} 13. Bxc4 {[%clk 0:02:52.8]} 13... Ne5 {[%clk 0:02:47.3]}
14. Rc1 {[%clk 0:02:52.3]} 14... Nxc4 {[%clk 0:02:43]} 15. bxc4 {[%clk
0:02:53.2]} 15... Nd7 {[%clk 0:02:40.7]} 16. Qd3 {[%clk 0:02:51]} 16... Ne5
{[%clk 0:02:39.6]} 17. Qe2 {[%clk 0:02:51.1]} 17... Qxc4 {[%clk 0:02:36.8]} 18.
Nd5 {[%clk 0:02:44.8]} 18... Qa4 {[%clk 0:02:25.2]} 19. Nxe7+ {[%clk 0:02:43.1]}
19... Kh8 {[%clk 0:02:25.4]} 20. Nec6 {[%clk 0:02:37]} 20... Bd7 {[%clk
0:02:14.3]} 21. Nxe5 {[%clk 0:02:17]} 21... dxe5 {[%clk 0:02:15.2]} 22. Nb3
{[%clk 0:02:16]} 22... Bb5 {[%clk 0:02:14.9]} 23. Qb2 {[%clk 0:02:16.1]} 23...
Bxf1 {[%clk 0:02:14.2]} 24. Rxf1 {[%clk 0:02:17]} 24... Rab8 {[%clk 0:02:10.1]}
25. Rd1 {[%clk 0:02:07.9]} 25... f6 {[%clk 0:02:08.8]} 26. Qd2 {[%clk
0:02:03.8]} 26... Rbc8 {[%clk 0:01:56.5]} 27. Nc5 {[%clk 0:01:56.4]} 27... Qc6
{[%clk 0:01:53.3]} 28. Qd6 {[%clk 0:01:56.5]} 28... Qb5 {[%clk 0:01:45]} 29.
Nxe6 {[%clk 0:01:51.8]} 29... Rg8 {[%clk 0:01:40.3]} 30. Qd7 {[%clk 0:01:18.2]}
30... Qe2 {[%clk 0:01:35.5]} 31. Qd2 {[%clk 0:01:02.1]} 31... Rc2 {[%clk
0:01:19.5]} 32. Qxe2 {[%clk 0:01:01.1]} 32... Rxe2 {[%clk 0:01:20.4]} 33. Bd2
{[%clk 0:01:00.3]} 33... Re8 {[%clk 0:01:15.7]} 34. Kf1 {[%clk 0:00:57.9]} 34...
Rxe4 {[%clk 0:01:05.9]} 35. fxe4 {[%clk 0:00:57.5]} 35... Rxe6 {[%clk
0:01:06.8]} 36. Bb4 {[%clk 0:00:55.5]} 36... h5 {[%clk 0:01:07.7]} 37. Rd6
{[%clk 0:00:55]} 37... Re8 {[%clk 0:01:05]} 38. Rxa6 {[%clk 0:00:53.5]} 38...
Rc8 {[%clk 0:01:05.5]} 39. a4 {[%clk 0:00:50.5]} 39... Rc4 {[%clk 0:01:06.4]}
40. Rb6 {[%clk 0:00:48.8]} 40... Rxe4 {[%clk 0:01:05]} 41. a5 {[%clk 0:00:49.1]}
41... Rc4 {[%clk 0:01:04.9]} 42. a6 {[%clk 0:00:49.4]} 42... Rc1+ {[%clk
0:01:05.8]} 43. Kf2 {[%clk 0:00:48.8]} 43... Ra1 {[%clk 0:01:06.7]} 44. Bc5
{[%clk 0:00:46.7]} 44... Ra5 {[%clk 0:01:04.5]} 45. Rb8+ {[%clk 0:00:45.9]}
45... Kh7 {[%clk 0:01:04]} 46. a7 {[%clk 0:00:46.6]} 46... Ra2+ {[%clk
0:01:03.2]} 47. Kf3 {[%clk 0:00:45]} 1-0